fUSD/lending_fUSD_20250321
["ID","MTS","AMOUNT","RATE_DAILY","PERIOD"]
[356507263,1742580656719,-500.0,0.00046996,120]
[356507264,1742580656729,-502.38977196,0.00046996,120]
[356507265,1742580656739,-500.86731354,0.00046996,120]
[356507266,1742580656749,-552.65651129,0.00046996,120]
[356507267,1742580656758,-500.0,0.00046996,120]
[356507268,1742580656768,-500.0,0.00046996,120]
[356507269,1742580656778,-500.0,0.00046996,120]
[356507270,1742580656787,-500.0,0.00046996,120]
[356507271,1742580656796,-500.0,0.00046996,120]
[356507272,1742580656806,-505.9138515,0.00046996,120]
[356507273,1742580656815,-500.0,0.00046996,120]
[356507274,1742580656825,-322.0359087,0.00046996,30]
[356507275,1742580656835,-501.76223712,0.00046996,120]
[356507276,1742580656846,-502.76082979,0.00046996,120]
[356507277,1742580656856,-500.83106184,0.00046996,120]
[356507278,1742580656866,-319.29890447,0.00046996,120]
[356507279,1742580656875,-500.0,0.00046996,120]
[356507280,1742580656884,-500.0,0.00046996,120]
[356507281,1742580656895,-501.60232268,0.00046996,120]
[356507282,1742580656904,-500.0,0.00046996,120]
[356507283,1742580656915,-500.0,0.00046996,120]
[356507284,1742580656925,-524.00028694,0.00046996,7]
[356507285,1742580656935,-505.76142288,0.00046996,120]
[356507286,1742580656946,-507.13248719,0.00046996,120]
[356507287,1742580656956,-502.30147204,0.00046996,120]
[356507288,1742580656965,-500.0,0.00046996,120]
[356507289,1742580656975,-211.46258268,0.00046996,120]
[356507290,1742580656986,-500.0,0.00046996,120]
[356507291,1742580656996,-500.0,0.00046996,120]
[356507292,1742580657007,-500.9036882,0.00046996,120]
[356507293,1742580657017,-500.46179944,0.00046996,2]
[356507294,1742580657026,-506.37219696,0.00046996,120]
[356507295,1742580657035,-500.0,0.00046996,120]
[356507296,1742580657045,-502.37318612,0.00046996,120]
[356507297,1742580657054,-500.27873661,0.00046996,2]
[356507298,1742580657063,-504.15420587,0.00046996,120]
[356507299,1742580657073,-504.52717627,0.00046996,120]
[356507300,1742580657230,-500.0,0.00046996,2]
[356507301,1742580657241,-539.74568091,0.00046996,120]
[356507302,1742580657250,-496.82927088,0.00046996,120]
[356507303,1742580657260,-521.91823525,0.00046996,120]
[356507304,1742580657269,-509.81676809,0.00046996,120]
[356507305,1742580657278,-520.09345691,0.00046996,120]
[356507306,1742580657288,-500.0,0.00046996,120]
[356507307,1742580657297,-329.78018739,0.00046996,120]
[356507308,1742580657306,-496.84650903,0.00046996,120]
[356507309,1742580657315,-500.0,0.00046996,16]
[356507310,1742580657325,-500.0,0.00046996,120]
[356507311,1742580657334,-500.0,0.00046996,120]
[356507312,1742580657343,-500.0,0.00046996,120]
[356507313,1742580657352,-501.13797636,0.00046996,120]
[356507314,1742580657362,-500.0,0.00046996,120]
[356507315,1742580657371,-331.47446235,0.00046996,120]
[356507316,1742580657380,-500.0,0.00046996,5]
[356507317,1742580657390,-508.50423915,0.00046996,120]
[356507318,1742580657399,-509.15831789,0.00046996,120]
[356507319,1742580657408,-518.74010624,0.00046996,120]
[356507320,1742580657418,-500.0,0.00046996,120]
[356507321,1742580657427,-500.0,0.00046996,120]
[356507322,1742580657436,-500.0,0.00046996,120]
[356507323,1742580657445,-500.0,0.00046996,2]
[356507324,1742580657455,-500.0,0.00046996,3]
[356507325,1742580657464,-503.29245462,0.00046996,120]
[356507326,1742580657474,-500.0,0.00046996,120]
[356507327,1742580657483,-509.92834041,0.00046996,120]
[356507328,1742580657498,-500.0,0.00046996,120]
[356507329,1742580657507,-502.85817201,0.00046996,120]
[356507330,1742580657516,-511.27157497,0.00046996,120]
[356507331,1742580657526,-523.85450571,0.00046996,120]
[356507332,1742580657536,-500.0,0.00046996,120]
[356507333,1742580657545,-511.98441124,0.00046996,120]
[356507334,1742580657555,-500.0,0.00046996,120]
[356507335,1742580657564,-500.0,0.00046996,120]
[356507336,1742580657579,-500.0,0.00046996,120]
[356507337,1742580657590,-500.0,0.00046996,120]
[356507338,1742580657599,-500.0,0.00046996,120]
[356507339,1742580657608,-523.56833607,0.00046996,120]
[356507340,1742580657618,-500.0,0.00046996,120]
[356507341,1742580657627,-500.0,0.00046996,120]
[356507342,1742580657636,-500.0,0.00046996,120]
[356507343,1742580657646,-500.0,0.00046996,120]
[356507344,1742580657656,-500.0,0.00046996,120]
[356507345,1742580657666,-500.0,0.00046996,120]
[356507346,1742580657675,-500.0,0.00046996,120]
[356507347,1742580657684,-502.78051993,0.00046996,120]
[356507348,1742580657694,-500.0,0.00046996,120]
[356507349,1742580657703,-500.0,0.00046996,120]
[356507350,1742580657712,-500.0,0.00046996,120]
[356507351,1742580657722,-500.0,0.00046996,120]
[356507352,1742580657731,-500.0,0.00046996,120]
[356507353,1742580657741,-500.0,0.00046996,120]
[356507354,1742580657750,-500.0,0.00046996,120]
[356507355,1742580657760,-161.94733935,0.00046996,120]
[356507356,1742580657769,-870.81,0.00046996,120]
[356507357,1742580657779,-500.0,0.00046996,120]
[356507358,1742580657788,-501.50001139,0.00046996,120]
[356507359,1742580657798,-500.0,0.00046996,120]
[356507360,1742580657807,-510.3,0.00046996,120]
[356507361,1742580657816,-500.0,0.00046996,120]
[356507362,1742580657827,-2700.24,0.00046996,120]
[356507363,1742580657837,-500.0,0.00046996,120]
[356507364,1742580657846,-500.0,0.00046996,120]
[356507365,1742580657856,-558.96,0.00046996,120]
[356507366,1742580657865,-500.0,0.00046996,120]
[356507367,1742580657875,-1133.33,0.00046996,7]
[356507368,1742580657884,-764.49,0.00046996,120]
[356507369,1742580657894,-517.01,0.00046996,120]
[356507370,1742580657903,-626.41,0.00046996,120]
[356507371,1742580657913,-500.0,0.00046996,120]
[356507372,1742580657923,-500.0,0.00046996,120]
[356507373,1742580657933,-500.0,0.00046996,120]
[356507374,1742580657943,-510.07549385,0.00046996,120]
[356507375,1742580657955,-500.0,0.00046996,120]
[356507376,1742580657964,-500.0,0.00046996,120]
[356507377,1742580657973,-500.0,0.00046996,120]
[356507378,1742580657983,-500.0,0.00046996,120]
[356507379,1742580657993,-500.0,0.00046996,120]
[356507380,1742580658003,-500.0,0.00046996,120]
[356507381,1742580658012,-3200.21,0.00046996,120]
[356507382,1742580658022,-500.0,0.00046996,120]
[356507383,1742580658032,-500.0,0.00046996,120]
[356507384,1742580658041,-506.76168674,0.00046996,120]
[356507385,1742580658051,-500.0,0.00046996,120]
[356507386,1742580658061,-500.0,0.00046996,120]
[356507387,1742580658071,-531.47,0.00046996,120]
[356507388,1742580658081,-589.0,0.00046996,120]
[356507389,1742580658091,-612.1,0.00046996,120]
[356507390,1742580658101,-616.89,0.00046996,120]
[356507391,1742580658111,-4552.96,0.00046996,120]
[356507392,1742580658120,-500.0,0.00046996,120]
[356507393,1742580658130,-1077.52,0.00046996,120]
[356507394,1742580658139,-500.0,0.00046996,120]
[356507395,1742580658148,-1008.33,0.00046996,120]
[356507396,1742580658159,-575.02,0.00046996,120]
[356507397,1742580658168,-500.0,0.00046996,120]
[356507398,1742580658177,-500.0,0.00046996,120]
[356507399,1742580658187,-500.0,0.00046996,120]
[356507400,1742580658196,-500.0,0.00046996,120]
[356507401,1742580658205,-2008.57,0.00046996,120]
[356507402,1742580658215,-500.0,0.00046996,2]
[356507403,1742580658224,-500.0,0.00046996,120]
[356507404,1742580658234,-500.0,0.00046996,120]
[356507405,1742580658243,-936.57,0.00046996,120]
[356507406,1742580658253,-500.0,0.00046996,120]
[356507407,1742580658262,-500.0,0.00046996,120]
[356507408,1742580658271,-500.0,0.00046996,120]
[356507409,1742580658281,-579.85,0.00046996,120]
[356507410,1742580658291,-500.0,0.00046996,120]
[356507411,1742580658300,-500.0,0.00046996,120]
[356507412,1742580658309,-1074.0,0.00046997,7]
[356507413,1742580658318,-640.43619905,0.00046997,120]
[356507414,1742580658327,-500.0,0.00046997,120]
[356507415,1742580658337,-500.0,0.00046997,120]
[356507416,1742580658346,-310.10328367,0.00046997,120]
[356507417,1742580658355,-501.84,0.00046997,120]
[356507418,1742580658364,-509.99499988,0.00046997,120]
[356507419,1742580658373,-503.2775584,0.00046997,120]
[356507420,1742580658382,-505.57239727,0.00046997,120]
[356507421,1742580658391,-538.13905512,0.00046997,120]
[356507422,1742580658400,-530.79,0.00046997,120]
[356507423,1742580658409,-507.14939377,0.00046997,120]
[356507424,1742580658418,-505.55469596,0.00046997,120]
[356507425,1742580658428,-501.81334952,0.00046997,120]
[356507426,1742580658437,-617.77848534,0.00046997,120]
[356507427,1742580658446,-500.0,0.00046997,120]
[356507428,1742580658455,-150.0,0.00046997,120]
[356507429,1742580658464,-500.0,0.00046997,120]
[356507430,1742580658473,-500.0,0.00046997,120]
[356507431,1742580658483,-5000.0,0.00046997,120]
[356507432,1742580658497,-516.64,0.00046997,120]
[356507433,1742580658506,-500.0,0.00046997,120]
[356507434,1742580658515,-500.0,0.00046997,120]
[356507435,1742580658524,-500.0,0.00046997,120]
[356507436,1742580658534,-500.0,0.00046997,120]
[356507437,1742580658543,-506.88060943,0.00046997,120]
[356507438,1742580658552,-504.8339506,0.00046997,120]
[356507439,1742580658562,-505.26618714,0.00046997,120]
[356507440,1742580658572,-500.0,0.00046997,120]
[356507441,1742580658581,-500.0,0.00046997,120]
[356507442,1742580658590,-502.82256356,0.00046997,120]
[356507443,1742580658600,-500.0,0.00046997,120]
[356507444,1742580658609,-502.17262628,0.00046997,120]
[356507445,1742580658618,-510.0553967,0.00046997,120]
[356507446,1742580658627,-500.0,0.00046997,120]
[356507447,1742580658636,-500.0,0.00046997,120]
[356507448,1742580658645,-500.0,0.00046997,120]
[356507449,1742580658654,-512.26824875,0.00046997,120]
[356507450,1742580658663,-325.47891705,0.00046997,120]
[356507451,1742580658673,-500.0,0.00046997,120]
[356507452,1742580658682,-500.0,0.00046997,120]
[356507453,1742580658691,-500.09406642,0.00046997,120]
[356507454,1742580658700,-500.0,0.00046997,120]
[356507455,1742580658709,-513.47949598,0.00046997,120]
[356507456,1742580658719,-500.0,0.00046997,120]
[356507457,1742580658728,-500.0,0.00046997,120]
[356507458,1742580658737,-500.0,0.00046997,120]
[356507459,1742580658746,-500.0,0.00046997,120]
[356507460,1742580658755,-500.0,0.00046997,120]
[356507461,1742580658764,-500.0,0.00046997,120]
[356507462,1742580658773,-500.0,0.00046997,120]
[356507463,1742580658783,-500.0,0.00046997,120]
[356507464,1742580658791,-500.0,0.00046997,120]
[356507465,1742580658801,-500.0,0.00046997,120]
[356507466,1742580658810,-500.0,0.00046997,120]
[356507467,1742580658819,-500.0,0.00046997,120]
[356507468,1742580658828,-500.0,0.00046997,120]
[356507469,1742580658837,-500.0,0.00046997,120]
[356507470,1742580658847,-870.81,0.00046997,120]
[356507471,1742580658856,-500.0,0.00046997,120]
[356507472,1742580658866,-3200.21,0.00046997,120]
[356507473,1742580658875,-936.57,0.00046997,120]
[356507474,1742580658884,-500.0,0.00046998,120]
[356507475,1742580658893,-559.59791244,0.00046998,120]
[356507476,1742580658904,-870.81,0.00046998,120]
[356507477,1742580658913,-936.57,0.00046998,120]
[356507478,1742580658923,-72990.00624077,0.00046999,30]
[356507479,1742580658933,-382.03402203,0.00046999,30]
[356507480,1742580658943,-500.0,0.00046999,120]
[356507481,1742580658953,-870.81,0.00046999,120]
[356507482,1742580658962,-150.0,0.00046999,120]
[356507483,1742580658971,-500.0,0.00046999,120]
[356507484,1742580658980,-3200.21,0.00046999,120]
[356507485,1742580658991,-425.52969423,0.00046999,120]
[356507486,1742580659000,-500.0,0.00046999,120]
[356507487,1742580659010,-2008.57,0.00046999,120]
[356507488,1742580659020,-500.0,0.00046999,2]
[356507489,1742580659029,-500.0,0.00046999,120]
[356507490,1742580659038,-936.57,0.00046999,120]
[356507491,1742580659047,-500.0,0.00046999,120]
[356507492,1742580659056,-258.72601845,0.00046999,120]
[356507493,1742580659066,-75430.96874257,0.00047,120]
[356507494,1742580660119,-500.0,0.00046993,30]
[356507495,1742580660129,-6.57687118,0.00046993,120]
[356507496,1742580660141,-514.19858795,0.00046993,120]
[356507497,1742580660150,-500.0,0.00046993,120]
[356507498,1742580660159,-500.0,0.00046994,120]
[356507499,1742580660169,-500.0,0.00046995,120]
[356507500,1742580660179,-63377.41150803,0.00047,120]
[356507501,1742580660188,-2000.0,0.00047,120]
[356507502,1742580660197,-2000.0,0.00047,120]
[356507503,1742580660207,-2000.0,0.00047,120]
[356507504,1742580660216,-2000.0,0.00047,120]
[356507505,1742580660226,-2000.0,0.00047,120]
[356507506,1742580660235,-2000.0,0.00047,120]
[356507507,1742580660248,-2000.0,0.00047,120]
[356507508,1742580660258,-2000.0,0.00047,120]
[356507509,1742580660267,-2000.0,0.00047,120]
[356507510,1742580660276,-2104.1878,0.00047,120]
[356507511,1742580660286,-220.79635932,0.00047,30]
[356507512,1742580660295,-1023.7328682,0.0004701,2]
[356507513,1742580660304,-11210.5766508,0.0004701,2]
[356507514,1742580660313,-3766.9002427,0.0004701,2]
[356507515,1742580660322,-5038.1518057,0.0004701,2]
[356507516,1742580660331,-2216.3810664,0.0004701,2]
[356507517,1742580660340,-2995.8717616,0.0004701,2]
[356507518,1742580660349,-470.53967434,0.00047015,15]
[356507519,1742580660359,-150.0,0.00047042,7]
[356507520,1742580660368,-365.12234882,0.00047062,15]
[356507521,1742580660378,-150.0,0.00047066,7]
[356507522,1742580660387,-150.0,0.00047087,7]
[356507523,1742580660396,-150.0,0.00047094,7]
[356507524,1742580660405,-415.0,0.000471,30]
[356507525,1742580660414,-150.0,0.00047135,7]
[356507526,1742580660423,-470.53967434,0.00047137,15]
[356507527,1742580660433,-150.0,0.00047178,7]
[356507528,1742580660442,-150.0,0.00047181,7]
[356507529,1742580660451,-365.12234882,0.00047195,15]
[356507530,1742580660460,-2000.0,0.000472,120]
[356507531,1742580660469,-150.0,0.00047214,7]
[356507532,1742580660479,-150.0,0.00047231,14]
[356507533,1742580660488,-10640.0,0.00047233,120]
[356507534,1742580660501,-150.0,0.00047252,7]
[356507535,1742580660510,-150.0,0.00047253,7]
[356507536,1742580660519,-150.0,0.00047255,7]
[356507537,1742580660528,-470.53967434,0.00047258,15]
[356507538,1742580660538,-150.0,0.00047266,7]
[356507539,1742580660547,-5728.73,0.00047266,120]
[356507540,1742580660557,-587.62,0.00047266,120]
[356507541,1742580660566,-500.0,0.00047266,120]
[356507542,1742580660576,-500.0,0.00047266,120]
[356507543,1742580660585,-923.65,0.00047266,120]
[356507544,1742580660594,-882.592724,0.00047266,120]
[356507545,1742580660603,-500.0,0.00047266,120]
[356507546,1742580660612,-500.0,0.00047266,120]
[356507547,1742580660621,-942.65,0.00047266,120]
[356507548,1742580660630,-500.0,0.00047266,120]
[356507549,1742580660639,-621.06,0.00047266,120]
[356507550,1742580660649,-2008.57,0.00047266,120]
[356507551,1742580660658,-1127.307384,0.00047266,120]
[356507552,1742580660667,-1299.41,0.00047266,120]
[356507553,1742580660676,-917.54,0.00047266,120]
[356507554,1742580660685,-954.74,0.00047266,120]
[356507555,1742580660693,-7986.5,0.00047266,120]
[356507556,1742580660702,-500.0,0.00047266,120]
[356507557,1742580660711,-863.25,0.00047266,120]
[356507558,1742580660720,-703.97,0.00047266,120]
[356507559,1742580660728,-706.22,0.00047266,120]
[356507560,1742580660737,-785.7,0.00047266,120]
[356507561,1742580660748,-500.0,0.00047266,120]
[356507562,1742580660757,-963.34,0.00047266,120]
[356507563,1742580660766,-676.04,0.00047266,120]
[356507564,1742580660775,-997.37,0.00047266,120]
[356507565,1742580660783,-1107.85,0.00047266,120]
[356507566,1742580660792,-1074.21,0.00047266,120]
[356507567,1742580660802,-1313.05,0.00047266,120]
[356507568,1742580660811,-500.0,0.00047266,120]
[356507569,1742580660820,-582.78,0.00047266,120]
[356507570,1742580660829,-2305.41,0.00047266,120]
[356507571,1742580660839,-11211.64,0.00047266,120]
[356507572,1742580660848,-572.02,0.00047266,120]
[356507573,1742580660857,-4114.72,0.00047266,120]
[356507574,1742580660866,-698.08,0.00047266,120]
[356507575,1742580660875,-629.59,0.00047266,120]
[356507576,1742580660884,-1780.89,0.00047266,120]
[356507577,1742580660893,-919.13,0.00047266,120]
[356507578,1742580660902,-500.0,0.00047266,120]
[356507579,1742580660912,-1505.24,0.00047266,120]
[356507580,1742580660921,-500.0,0.00047266,120]
[356507581,1742580660931,-529.62,0.00047266,120]
[356507582,1742580660940,-708.14,0.00047266,120]
[356507583,1742580660950,-6933.41,0.00047266,120]
[356507584,1742580660960,-2234.81,0.00047266,120]
[356507585,1742580660969,-2841.87,0.00047266,120]
[356507586,1742580660978,-835.96,0.00047266,120]
[356507587,1742580660988,-928.12,0.00047266,120]
[356507588,1742580661000,-500.0,0.00047266,120]
[356507589,1742580661010,-500.0,0.00047266,120]
[356507590,1742580661021,-500.0,0.00047266,120]
[356507591,1742580661030,-756.94,0.00047266,120]
[356507592,1742580661041,-500.0,0.00047266,2]
[356507593,1742580661051,-500.0,0.00047266,120]
[356507594,1742580661060,-500.0,0.00047266,120]
[356507595,1742580661070,-500.0,0.00047266,120]
[356507596,1742580661080,-669.23,0.00047266,120]
[356507597,1742580661089,-500.0,0.00047267,120]
[356507598,1742580661098,-500.0,0.00047267,120]
[356507599,1742580661107,-500.0,0.00047267,120]
[356507600,1742580661116,-500.0,0.00047267,120]
[356507601,1742580661126,-500.0,0.00047267,120]
[356507602,1742580661135,-500.0,0.00047267,120]
[356507603,1742580661144,-500.0,0.00047267,120]
[356507604,1742580661154,-278.46459945,0.00047267,120]
[356507605,1742580661163,-500.0,0.00047267,120]
[356507606,1742580661173,-500.0,0.00047267,120]
[356507607,1742580661182,-500.0,0.00047267,120]
[356507608,1742580661193,-500.0,0.00047267,120]
[356507609,1742580661204,-500.0,0.00047267,120]
[356507610,1742580661214,-500.0,0.00047267,120]
[356507611,1742580661226,-414.77037329,0.00047267,120]
[356507612,1742580661235,-500.0,0.00047267,120]
[356507613,1742580661245,-500.0,0.00047267,120]
[356507614,1742580661254,-535.42147109,0.00047267,120]
[356507615,1742580661263,-500.0,0.00047267,120]
[356507616,1742580661272,-500.0,0.00047267,120]
[356507617,1742580661282,-500.0,0.00047267,2]
[356507618,1742580661291,-500.0,0.00047267,120]
[356507619,1742580661300,-500.0,0.00047267,120]
[356507620,1742580661311,-500.0,0.00047267,120]
[356507621,1742580661321,-500.0,0.00047267,120]
[356507622,1742580661331,-615.6038386,0.00047267,120]
[356507623,1742580661487,-500.0,0.00047267,120]
[356507624,1742580661500,-500.0,0.00047267,120]
[356507625,1742580661510,-500.0,0.00047267,120]
[356507626,1742580661519,-500.0,0.00047267,120]
[356507627,1742580661530,-500.0,0.00047267,120]
[356507628,1742580661539,-486.05788143,0.00047267,120]
[356507629,1742580661549,-500.0,0.00047267,120]
[356507630,1742580661559,-500.0,0.00047267,120]
[356507631,1742580661570,-152.54338964,0.00047267,120]
[356507632,1742580661579,-500.0,0.00047267,120]
[356507633,1742580661589,-500.0,0.00047267,120]
[356507634,1742580661598,-500.0,0.00047267,120]
[356507635,1742580661609,-710.7,0.00047267,120]
[356507636,1742580661619,-500.0,0.00047267,120]
[356507637,1742580661629,-274.09864291,0.00047267,120]
[356507638,1742580661639,-500.0,0.00047267,120]
[356507639,1742580661648,-500.0,0.00047267,120]
[356507640,1742580661657,-500.0,0.00047267,120]
[356507641,1742580661667,-500.0,0.00047267,120]
[356507642,1742580661677,-500.0,0.00047267,120]
[356507643,1742580661687,-500.0,0.00047267,120]
[356507644,1742580661696,-500.0,0.00047267,120]
[356507645,1742580661706,-500.0,0.00047267,120]
[356507646,1742580661716,-500.0,0.00047267,120]
[356507647,1742580661727,-500.0,0.00047267,120]
[356507648,1742580661737,-500.0,0.00047267,120]
[356507649,1742580661747,-516.84279313,0.00047267,120]
[356507650,1742580661758,-500.0,0.00047267,120]
[356507651,1742580661767,-500.0,0.00047267,120]
[356507652,1742580661777,-500.0,0.00047267,120]
[356507653,1742580661787,-500.0,0.00047267,120]
[356507654,1742580661796,-511.53237811,0.00047267,120]
[356507655,1742580661806,-500.0,0.00047267,120]
[356507656,1742580661816,-500.0,0.00047267,120]
[356507657,1742580661825,-500.0,0.00047267,120]
[356507658,1742580661835,-500.0,0.00047267,120]
[356507659,1742580661844,-500.0,0.00047267,120]
[356507660,1742580661854,-512.11841463,0.00047267,120]
[356507661,1742580661864,-500.0,0.00047267,120]
[356507662,1742580661873,-500.0,0.00047267,120]
[356507663,1742580661883,-500.0,0.00047267,120]
[356507664,1742580661893,-500.0,0.00047267,120]
[356507665,1742580661902,-500.0,0.00047267,120]
[356507666,1742580661912,-500.0,0.00047267,120]
[356507667,1742580661923,-500.0,0.00047267,120]
[356507668,1742580661932,-500.0,0.00047267,120]
[356507669,1742580661942,-500.0,0.00047267,120]
[356507670,1742580661952,-500.0,0.00047267,120]
[356507671,1742580661962,-500.0,0.00047267,2]
[356507672,1742580661971,-500.0,0.00047267,120]
[356507673,1742580661981,-500.0,0.00047267,120]
[356507674,1742580661991,-500.0,0.00047267,120]
[356507675,1742580662001,-500.0,0.00047267,120]
[356507676,1742580662011,-500.0,0.00047267,120]
[356507677,1742580662021,-366.15415794,0.00047267,120]
[356507678,1742580662030,-500.0,0.00047267,120]
[356507679,1742580662039,-500.0,0.00047267,120]
[356507680,1742580662050,-500.0,0.00047267,120]
[356507681,1742580662059,-500.0,0.00047267,120]
[356507682,1742580662069,-500.0,0.00047267,120]
[356507683,1742580662079,-500.0,0.00047267,120]
[356507684,1742580662088,-500.0,0.00047267,120]
[356507685,1742580662097,-500.0,0.00047267,120]
[356507686,1742580662107,-500.0,0.00047267,120]
[356507687,1742580662116,-500.0,0.00047267,120]
[356507688,1742580662125,-500.0,0.00047267,120]
[356507689,1742580662135,-500.0,0.00047267,120]
[356507690,1742580662144,-500.0,0.00047267,120]
[356507691,1742580662154,-500.0,0.00047267,120]
[356507692,1742580662163,-500.0,0.00047267,120]
[356507693,1742580662172,-500.0,0.00047267,120]
[356507694,1742580662182,-500.0,0.00047267,120]
[356507695,1742580662193,-500.0,0.00047267,120]
[356507696,1742580662204,-500.0,0.00047267,120]
[356507697,1742580662214,-500.0,0.00047267,120]
[356507698,1742580662224,-500.0,0.00047267,120]
[356507699,1742580662235,-500.0,0.00047267,120]
[356507700,1742580662244,-500.0,0.00047267,120]
[356507701,1742580662254,-500.0,0.00047267,120]
[356507702,1742580662263,-500.0,0.00047267,120]
[356507703,1742580662272,-500.0,0.00047267,120]
[356507704,1742580662281,-500.0,0.00047267,120]
[356507705,1742580662291,-500.0,0.00047267,120]
[356507706,1742580662301,-500.0,0.00047267,120]
[356507707,1742580662311,-500.0,0.00047267,120]
[356507708,1742580662321,-500.0,0.00047267,120]
[356507709,1742580662330,-500.0,0.00047267,120]
[356507710,1742580662339,-500.0,0.00047267,120]
[356507711,1742580662349,-220.84369961,0.00047267,30]
[356507712,1742580662358,-500.0,0.00047267,120]
[356507713,1742580662367,-500.0,0.00047267,120]
[356507714,1742580662376,-500.0,0.00047267,30]
[356507715,1742580662385,-500.0,0.00047267,120]
[356507716,1742580662395,-500.0,0.00047267,120]
[356507717,1742580662405,-500.0,0.00047267,120]
[356507718,1742580662414,-500.0,0.00047267,120]
[356507719,1742580662423,-2303.64,0.00047267,120]
[356507720,1742580662432,-500.0,0.00047267,120]
[356507721,1742580662441,-500.0,0.00047267,120]
[356507722,1742580662450,-500.0,0.00047267,120]
[356507723,1742580662459,-500.0,0.00047267,120]
[356507724,1742580662469,-500.0,0.00047267,120]
[356507725,1742580662479,-500.0,0.00047267,120]
[356507726,1742580662489,-500.0,0.00047267,120]
[356507727,1742580662503,-500.0,0.00047267,120]
[356507728,1742580662512,-1760.59,0.00047267,120]
[356507729,1742580662522,-500.0,0.00047267,120]
[356507730,1742580662531,-305.35831094,0.00047267,120]
[356507731,1742580662553,-194.64168906,0.00047267,120]
[356507732,1742580662562,-500.0,0.00047267,120]
[356507733,1742580662572,-500.0,0.00047267,120]
[356507734,1742580662581,-500.0,0.00047267,120]
[356507735,1742580662591,-500.0,0.00047267,120]
[356507736,1742580662601,-500.0,0.00047267,120]
[356507737,1742580662610,-500.0,0.00047267,120]
[356507738,1742580662619,-500.0,0.00047267,120]
[356507739,1742580662629,-500.0,0.00047267,120]
[356507740,1742580662640,-500.0,0.00047267,120]
[356507741,1742580662652,-500.0,0.00047267,120]
[356507742,1742580662664,-500.0,0.00047267,120]
[356507743,1742580662675,-500.0,0.00047267,120]
[356507744,1742580662684,-500.0,0.00047267,120]
[356507745,1742580662693,-500.0,0.00047267,120]
[356507746,1742580662703,-500.0,0.00047267,120]
[356507747,1742580662714,-560.67,0.00047267,120]
[356507748,1742580662724,-500.0,0.00047267,120]
[356507749,1742580662734,-500.0,0.00047267,120]
[356507750,1742580662743,-500.0,0.00047267,120]
[356507751,1742580662753,-500.0,0.00047267,120]
[356507752,1742580662762,-500.0,0.00047267,120]
[356507753,1742580662771,-500.0,0.00047267,120]
[356507754,1742580662781,-500.0,0.00047267,120]
[356507755,1742580662790,-500.0,0.00047267,120]
[356507756,1742580662799,-500.0,0.00047267,120]
[356507757,1742580662809,-592.07,0.00047267,120]
[356507758,1742580662818,-500.0,0.00047267,120]
[356507759,1742580662827,-500.0,0.00047267,120]
[356507760,1742580662837,-500.0,0.00047267,120]
[356507761,1742580662846,-500.0,0.00047267,120]
[356507762,1742580662855,-500.0,0.00047267,120]